Cogmind - Beta 13 @@@ ROGUE MODE // 2024.06.30 @ 10:36:18 Player: Some Pennies Result: Destroyed by G-47 Trooper with Particle Gun Performance ------------- Evolutions (0) 0 Regions Visited (2) 400 Robots Destroyed (35) 175 Value Destroyed (487) 487 Prototype IDs (4) 80 Alien Tech Used (0) 0 Bonus (0) 0 TOTAL SCORE: 1142 Bonus ------- None Cogmind --------- Core Integrity 0/250 Matter 300/300 Energy 250/250 System Corruption 0% Temperature Cool (9) Movement Flying (1725) Ox21 Location -10/Mines Parts ------- > --- POWER (1) -------- Ion Engine > --- PROPULSION (2) --- Compact Wheel Flight Unit > --- UTILITY (2) ------ Heat Sink Huge Storage Unit > --- WEAPON (2) ------- Light Assault Rifle > --- INVENTORY (25) --- Subdweller Power Source Light Nuclear Core Structural Scanner Structural Scanner Improved Terrain Scanner Seismic Detector Seismic Detector Transport Network Coupler Hacking Suite Small Laser Particle Gun Datajack Mining Laser Proton Bomb Trap Proton Bomb Trap Proton Bomb Trap Peak State ------------ > --- POWER ------------ Ion Engine > --- PROPULSION ------- Light Treads Wheel > --- UTILITY ---------- Huge Storage Unit Structural Scanner > --- WEAPON ----------- Small Laser Particle Gun > --- INVENTORY -------- Subdweller Power Source Light Nuclear Core Improved Terrain Scanner Seismic Detector Seismic Detector Transport Network Coupler Hacking Suite Datajack Mining Laser [Rating: 9] Favorites ----------- Power Ion Engine Engine Ion Engine Propulsion Light Treads Treads Light Treads Wheel Compact Wheel Flight Unit Flight Unit Utility Huge Storage Unit Device Structural Scanner Storage Huge Storage Unit Weapon Light Assault Rifle Energy Gun Small Laser Ballistic Gun Light Assault Rifle Ballistic Cannon Light Cannon Build | -11 -10 -10 ------- Run | Yrd Mat Min Slots Evolved . | . . . Power . | . . . Propulsion . | . . . Utility . | . . . Weapon . | . . . Parts Attached 28 | 7 15 6 Power 2 | 1 1 . Engine 2 | 1 1 . Core . | . . . Reactor . | . . . Propulsion 10 | 2 5 3 Treads 4 | 1 3 . Leg . | . . . Wheel 4 | 1 2 1 Hover . | . . . Flight 2 | . . 2 Utility 5 | 2 2 1 Device 3 | 1 1 1 Storage 2 | 1 1 . Processor . | . . . Hackware . | . . . Protection . | . . . Artifact . | . . . Weapon 11 | 2 7 2 Energy Gun 3 | 1 2 . Energy Cannon . | . . . Ballistic Gun 7 | 1 5 1 Ballistic Cannon 1 | . . 1 Launcher . | . . . Special Weapon . | . . . Impact Weapon . | . . . Slashing Weapon . | . . . Piercing Weapon . | . . . Special Melee Weapon . | . . . Unidentified Prototypes . | . . . Parts Lost 7 | . 4 3 Power 1 | . 1 . Propulsion 3 | . 1 2 Utility . | . . . Weapon 3 | . 2 1 Highest Loss Streak 3 | . 3 1 To Critical Strikes . | . . . Average Slot Usage (%) 98 | . 98 99 Engine 13 | . 13 14 Treads 13 | . 22 3 Wheel 8 | . 5 13 Flight 4 | . . 10 Device 14 | . 14 14 Storage 14 | . 14 14 Energy Gun 5 | . 4 7 Ballistic Gun 17 | . 22 10 Ballistic Cannon 4 | . . 9 Naked Turns . | . . . Heaviest Build 90 | 14 90 90 Greatest Support 40 | 16 40 20 Greatest Overweight (x) 22 | 2 8 22 Average Overweight (x) 3 | . 2 7 Largest Inventory Capacity 25 | 8 25 25 Average Capacity 21 | 7 20 25 Most Carried 17 | 7 11 17 Average Carried 11 | 3 9 14 Final Capacity 25 | 8 25 25 Final Carried 16 | 7 10 16 Class Distribution -------------------- 60% | Mutant 39% | Scavenger-Mutant Dominant Class ---------------- Mutant | -10/Materials Scavenger-Mutant | -10/Mines Resources | -11 -10 -10 ----------- Run | Yrd Mat Min Matter Collected 832 | 272 470 90 Remotely . | . . . Salvage Created 1042 | 133 638 271 Parts 77 | 11 49 17 Haulers Intercepted 1 | . 1 . Recyclers Shooed 2 | . 2 . Parts Field Recycled . | . . . Retrieved Matter . | . . . Parts Self-Destructed . | . . . Prevented . | . . . Kills | -11 -10 -10 ------- Run | Yrd Mat Min Combat Hostiles Destroyed 21 | . 13 8 Guns 19 | . 13 6 Cannons 2 | . . 2 Classes Destroyed 8 | 3 5 . Worker 3 | 1 1 1 Tunneler 2 | 2 . . Hauler 1 | . 1 . Recycler 4 | 1 2 1 Operator 1 | . 1 . Watcher 3 | . 3 . Swarmer 15 | . 9 6 Grunt 6 | . 4 2 Best Kill Streak 6 | 3 6 3 Combat Bots Only 6 | . 6 3 Max Kills in Single Turn 2 | 1 1 2 Gunslinging . | . . . Exploded . | . . . Melee . | . . . Uniques/NPCs Destroyed . | . . . Combat | -11 -10 -10 -------- Run | Yrd Mat Min Hostile Shots Fired 151 | . 95 56 Missed 39 | . 26 13 Damage Taken 1190 | . 739 451 Core 261 | . 175 86 Absorbed by Shields . | . . . Core Remaining (%) 100 | 100 . . Volleys Fired 136 | 9 98 29 Largest 2 | 2 2 2 Hottest 105 | 60 60 105 Shots Fired 256 | 18 180 58 Gun 249 | 18 180 51 Cannon 7 | . . 7 Launcher . | . . . Special . | . . . Kinetic 175 | 9 152 14 Thermal 81 | 9 28 44 Explosive . | . . . Electromagnetic . | . . . Robot Hit Streak 11 | 4 11 8 Robot Miss Streak 7 | 2 7 7 Penetration Max . | . . . Secondary Targets 1 | . 1 . Max Gunslinging Chain 1 | . 1 . Shots Hit Robots 142 | 11 101 30 Core Hits 54 | 5 36 13 Critical Kills . | . . . Critical Parts Destroyed . | . . . Critical Strikes 2 | . . 2 Burn 2 | . . 2 Melee Attacks . | . . . Impact . | . . . Slashing . | . . . Piercing . | . . . Sneak Attacks . | . . . Combat Hostiles . | . . . Follow-up Attacks . | . . . Damage Inflicted 1708 | 126 1093 489 Guns 1622 | 126 1093 403 Cannons 86 | . . 86 Explosions . | . . . Melee . | . . . Ramming . | . . . Kinetic 1044 | 56 884 104 Thermal 664 | 70 209 385 Explosive . | . . . Electromagnetic . | . . . Impact . | . . . Slashing . | . . . Piercing . | . . . Highest Corruption . | . . . Average Corruption . | . . . Corruption Purged . | . . . Corruption Blocked . | . . . Overload Shots . | . . . Overflow Damage . | . . . Projectiles . | . . . Explosions . | . . . Melee . | . . . Knockbacks 4 | . . 4 Impact . | . . . Kinetic 3 | . . 3 Secondary 1 | . . 1 Self-Inflicted Damage . | . . . Shots . | . . . Rammed . | . . . Targets Rammed . | . . . Kicked . | . . . Crushed . | . . . Highest Temperature 270 | 20 58 270 Average Temperature 67 | 20 29 85 Received Heat Transfer 480 | . 300 180 Siege Activations . | . . . Robots Corrupted . | . . . Combat Hostiles . | . . . Parts Fried . | . . . Impact Corruptions . | . . . Robots Melted . | . . . Combat Hostiles . | . . . Parts Melted 2 | . . 2 Heat Transferred 1666 | 150 475 1041 Parts Sabotaged . | . . . Parts Stolen . | . . . Parts Stripped . | . . . Power Chain Reactions . | . . . Alert | -11 -10 -10 ------- Run | Yrd Mat Min Peak Influence 242 | 20 242 120 Initial 13 | . 13 . Average 66 | 5 92 39 Maximum Alert Level 1 | . 1 . Low Security (%) 94 | 100 89 100 Level 1 5 | . 10 . Level 2 . | . . . Level 3 . | . . . Level 4 . | . . . Level 5 . | . . . High Security . | . . . Max Security . | . . . Squads Dispatched 1 | . 1 . Investigation . | . . . Extermination . | . . . Reinforcement 1 | . 1 . Assault . | . . . Garrison . | . . . Intercept . | . . . Searches Triggered . | . . . Construction Impeded . | . . . Haulers Reinforced . | . . . Active Scanning Responses . | . . . Cargo Convoy Interrupts . | . . . Stealth | -11 -10 -10 --------- Run | Yrd Mat Min Distress Signals 5 | . 5 . Communications Jammed . | . . . Distress Signals . | . . . Times Spotted 31 | . 22 9 Peak Tracking Total 7 | . 7 3 Tactical Retreats 1 | . 1 . Traps | -11 -10 -10 ------- Run | Yrd Mat Min Traps Triggered . | . . . Indirectly . | . . . Trap Hack Attempts . | . . . Triggered . | . . . Disarmed . | . . . Reprogrammed . | . . . Reused . | . . . Traps Extracted . | . . . Installed . | . . . Triggered . | . . . Most Traps Carried 3 | . . 3 Machines | -11 -10 -10 ---------- Run | Yrd Mat Min Machines Disabled . | . . . Max in Single Turn . | . . . Machines Repaired . | . . . Machines Dismantled . | . . . Machines Sabotaged . | . . . Overloaded Fab Kills . | . . . Hacking | -11 -10 -10 --------- Run | Yrd Mat Min Machines Accessed 5 | . 5 . Terminals 4 | . 4 . Fabricators . | . . . Repair Stations . | . . . Recycling Units 1 | . 1 . Scanalyzers . | . . . Garrison Access . | . . . Total Hacks 13 | . 13 . Successful 7 | . 7 . Failed 6 | . 6 . Catastrophic 1 | . 1 . Database Lockouts . | . . . Manual . | . . . Terminals 11 | . 11 . Fabricators . | . . . Repair Stations . | . . . Recycling Units 2 | . 2 . Scanalyzers . | . . . Garrison Access . | . . . Terminal Hacks 7 | . 7 . Prototype ID Bank 3 | . 3 . Emergency Access Points 1 | . 1 . Locate Traps 3 | . 3 . Fabricator Hacks . | . . . Repair Station Hacks . | . . . Recycling Unit Hacks . | . . . Scanalyzer . | . . . Garrison Access Hacks . | . . . Unauthorized Hacks . | . . . Terminals . | . . . Fabricators . | . . . Repair Stations . | . . . Recycling Units . | . . . Scanalyzers . | . . . Garrison Access . | . . . Data Cores Recovered . | . . . Used . | . . . Hacking Detections 5 | . 5 . Full Trace Events 2 | . 2 . Feedback Events . | . . . Feedback Blocked . | . . . Robot Schematics Acquired . | . . . Robots Built . | . . . Authchips . | . . . Time . | . . . Total Robot Build Rating . | . . . Part Schematics Acquired . | . . . Parts Built . | . . . Authchips . | . . . Time . | . . . Total Part Build Rating . | . . . Parts Repaired . | . . . Time . | . . . Parts Recycled . | . . . Recycled Matter . | . . . Retrieved Matter . | . . . Retrieved Components . | . . . Parts Scanalyzed . | . . . Part Schematics Acquired . | . . . Parts Damaged . | . . . Bothacking | -11 -10 -10 ------------ Run | Yrd Mat Min Used RIF Installer . | . . . Robots Hacked . | . . . Non-combat . | . . . Combat . | . . . Robot Hacks Applied . | . . . Relay Couplers Released . | . . . Fabnet Peak Effective % . | . . . Robots Rewired . | . . . Allies Hacked . | . . . Hacks Repelled . | . . . Allies | -11 -10 -10 -------- Run | Yrd Mat Min Total Allies . | . . . Largest Group . | . . . Highest-Rated Group . | . . . Highest-Rated Ally . | . . . Total Orders . | . . . Ally Attacks . | . . . Total Damage . | . . . Kills . | . . . Allies Corrupted . | . . . Allies Melted . | . . . Intel | -11 -10 -10 ------- Run | Yrd Mat Min Robot Analysis Total . | . . . Derelict Logs Recovered 1 | . . 1 Drone Launches . | . . . Drone Recoveries . | . . . Exploration | -11 -10 -10 ------------- Run | Yrd Mat Min Turns Passed 3118 | 125 1673 1320 Spaces Moved 956 | 79 599 278 Core 13 | 13 . . Treads 325 | . 317 8 Legs . | . . . Wheels 574 | 66 282 226 Hover . | . . . Flight 44 | . . 44 Fastest Speed 50 | 50 95 175 Average Speed 274 | 101 219 441 Slowest Speed 1805 | 150 480 1805 Overloaded Moves . | . . . Propulsion Burnouts . | . . . Robots Hopped . | . . . Cave-ins Triggered . | . . . Exploration Rate (%) 47 | 4 75 64 Regions Visited 2 Branch Regions 1 Pre-discovered Areas . | . . . Known Exits Taken . | . . . Unknown Exits Taken 2 | 1 1 . Scrap Searched 2 | . . 2 Spaces Dug . | . . . Terrain Destroyed . | . . . Melee . | . . . Projectile . | . . . AOE . | . . . Terrain Rammed . | . . . Walls Destroyed . | . . . Machines Disabled . | . . . Actions | -11 -10 -10 --------- Run | Yrd Mat Min Total 1220 | 102 797 321 Wait 70 | 1 68 1 Move 954 | 78 598 278 Hop . | . . . Pick Up 22 | 7 9 6 Fast Attach 12 | 7 3 2 Attach 2 | . 2 . Detach . | . . . Swap 14 | . 10 4 Drop 10 | . 9 1 Fire 136 | 9 98 29 Melee . | . . . Ram . | . . . Kick . | . . . Crush . | . . . Escape Stasis . | . . . Rewire . | . . . Trap . | . . . Miscellaneous . | . . . Route ------- -11/Scrapyard -10/Materials (discovered 5 exits: [*Mat x2] / [*Min x2] / [*Sub]) -10/Mines History --------- Turn | Location | Event 7 | -11/Scrapyard | Discovered new exit (range 15) 126 | -11/Scrapyard | Entered Materials 307 | -10/Materials | Build established: Mutant 400 | -10/Materials | Discovered new exit (range 14) 466 | -10/Materials | Discovered new exit (range 16) 626 | -10/Materials | Derelicts attacked the area 876 | -10/Materials | Discovered new exit (range 9) 953 | -10/Materials | Discovered new exit (range 7) 1421 | -10/Materials | Discovered new exit (range 6) 1498 | -10/Materials | Core integrity fell below 50% 1617 | -10/Materials | Lost 3 parts (1p1n1w) 1799 | -10/Materials | Entered Mines 1816 | -10/Mines | Core integrity fell below 20% 1991 | -10/Mines | Learned Materials security intel 2206 | -10/Mines | Build established: Scavenger-Mutant 2259 | -10/Mines | Found a hidden stash of uninstalled traps 3119 | -10/Mines | Destroyed by G-47 Trooper with Particle Gun Last Messages --------------- 02253_ Acquired Structural Scanner. 02259_ A stash of uninstalled traps is collected here! 02263_ Acquired Proton Bomb Trap. 02297_ S-10 Pest knocked back. 02306_ S-10 Pest destroyed. 02306_ S-10 Pest knocked back. 02308_ S-10 Pest destroyed. 02314_ S-10 Pest knocked back. 02317_ S-10 Pest destroyed. 02319_ Acquired 4 matter. 02321_ Acquired 12 matter. 02323_ Acquired 14 matter. 02325_ Acquired 4 matter. 02326_ Acquired 1 matter. 02335_ Dropped Flight Unit. 02676_ K-01 Serf collects debris. 02733_ Acquired 10 matter. 03115_ Critical hit (Burn: +37). 03117_ Lgt. Cannon destroyed. Map ----- +----------------------------------------------------+ | | | | | | | | | | | | | | | | | | | ?????????????????????????????????????????????????? | | ?????????????????????????????????????????????????? | | ?????????????????????????????????????????????????? | | ?????????????????????????????????????????????????? | | ?????????????????????????????????????????????????? | | ?????????????????????????????????????????????????? | | ?????????????????????????????????????????????????? | | ?????????????????????????????????????????????????? | | ????????????????????????#########?#############??# | | ????????????????????????# ### %% #### | | ????????????????????????# ## | | ???????????????????????## ## ##### | | ??????????????????##??## ### #???## | | ?????????????????## ## #?## #????### | | ????????????????## #??#### ##?????## | | ????????????????# ##?????## #??????# | | ???????????????# @#???????# #??????## | | ??????????????# ##???????# #???????### | | ?????????????# ##?????????## ##?????????? | | ?????????????# #????????????# ##??????????? | | ?????????????# g ?????????????# #???????????? | | ?????????????# ??????????????# #???????????? | | ?????????????## ??????????????# #???????????? | | ??????????????##### ?????????????### ### #???????? | | ??????????????????#??????????????# #???????# | | ?????????????????????????????????# #### ##?????### | | ?????????????????????????????????# #????#?????## | | ?????????????????????????????????# #??????????# | | ??????????????????????????????#### #??????????# | | ??????????????????????????????# #??????????# | | ??????????????????????????????# ####?????????## | | ??????????????????????????????# #????####???## | | ?????????????????# ???????????# #???## ##### | | ??????????????????# ?????### ##### ## | | ?????????????????????# ##! # | | ??????????????????????# |%######## ## | | ??????????????????????## ### #??????## #### | | ???????????????????????#?#### #???????## ##??# | | ??????????????????????#??#### #????????# ##### | | ??????????????????????? ?## #????????# | | ???????????????????????? ## ##????????## ##### | +----------------------------------------------------+ Best States ------------- Heat Dissipation 35 Energy Generation 10 Energy Capacity 250 Matter Stores 300 Matter Capacity 300 Sight Range 16 Terrain Scan Density 10 Evasion (%) 41 Recoil Reduction 2 Item Schematics ----------------- None Robot Schematics ------------------ None Fabricated ------------ Nothing Alien Tech Used ----------------- None Achievements -------------- None Challenges ------------ None Game ------ Seed LinearTitaniumExoskeleton Manual? 0 Play Time 00:15:13 Cumulative 174.9 hours Start 2024.06.30 @ 10:15:06 End 2024.06.30 @ 10:36:18 Sessions 1 Manual Loads 0 Difficulty Rogue Special Mode None Game No. 148 Rogue 143 Adventurer 5 Explorer 0 Win Type - Total 3 Types 2/0/1/0/0/0/0/0/0 Lore% 65 Gallery% 76 Achievement% 56 Wizard Run 0 Options --------- Layout 2 ASCII 0 Keyboard 0 Movement Mouse Keybinds 0 Fullscreen 2 Font 24/Smallcaps Map View 50x44 Zoom Use 0% Tactical HUD 1 Map Filters NONE Filters NONE Steam 1 RUN: 86b49c2b-1534-4cbe-abfa-edf4b0743d91